bitfinex/quotes_ETHUSD_20240709
["timestamp","ask_amount","ask_price","bid_price","bid_amount"]
[1720558290620,1.58457378,3081.2,3080.4,3.34256]
[1720558290819,1.575755,3081.1,3080.4,3.34256]
[1720558290988,1.12464307,3081.1,3080.4,3.34256]
[1720558291187,1.35953374,3081.2,3080.4,3.34256]
[1720558291412,1.57574918,3081.1,3080.5,0.334256]
[1720558291583,1.12464008,3081.0,3080.5,0.334256]
[1720558291780,1.35953374,3081.2,3080.5,0.334256]
[1720558291980,1.57575118,3081.1,3080.4,3.34256]
[1720558292236,1.12464175,3081.0,3080.4,3.34256]
[1720558292412,1.12464175,3081.1,3080.4,3.34256]
[1720558292607,1.12464241,3081.2,3080.4,3.34256]
[1720558292806,1.57575349,3081.1,3080.4,3.34256]
[1720558293025,1.12464241,3081.0,3080.4,2.819]
[1720558293234,4.76424546,3081.3,3080.4,2.819]
[1720558293535,1.57575351,3081.2,3080.4,2.819]
[1720558293731,1.57575351,3081.1,3080.4,2.819]
[1720558293933,1.57575351,3081.0,3080.4,2.819]
[1720558294138,0.45111086,3080.9,3080.2,2.4166]
[1720558294298,2.93528725,3080.9,3080.2,2.4166]
[1720558294500,1.57606259,3080.8,3080.2,2.4166]
[1720558294711,1.57606259,3080.7,3080.5,1.175]
[1720558294911,1.12480122,3080.6,3080.5,1.175]
[1720558295111,1.12480122,3080.6,3080.3,1.175]
[1720558295434,1.12480122,3080.5,3080.3,1.175]
[1720558295604,4.30128698,3080.8,3080.3,1.175]
[1720558295605,1.12480122,3080.7,3080.3,1.175]
[1720558295805,1.12480122,3080.6,3080.3,1.175]
[1720558296006,1.12480122,3080.5,3080.3,1.175]
[1720558296636,0.4301287,3080.7,3079.9,2.438]
[1720558296938,1.12481463,3080.4,3079.9,2.438]
[1720558297403,0.55,3080.6,3079.9,2.438]
[1720558298004,1.12482651,3080.5,3079.9,2.438]
[1720558298243,1.12482651,3080.5,3079.9,3.2639]
[1720558298415,1.12482651,3080.5,3079.9,3.32883331]
[1720558298741,1.12482651,3080.5,3079.9,3.2639]
[1720558299839,1.12482651,3080.5,3079.9,6.51074]
[1720558300001,1.12482651,3080.5,3080.4,2.3113]
[1720558300207,1.12482651,3080.5,3080.4,5.55763]
[1720558300407,1.12482651,3080.5,3080.4,8.80396]
[1720558301607,1.35941283,3080.8,3080.6,3.2461]
[1720558301844,1.35941283,3080.8,3080.7,2.75991]
[1720558302141,1.35941283,3080.8,3080.7,6.00592]
[1720558305169,2.4839452,3080.8,3080.7,6.00592]
[1720558305369,2.48393992,3080.8,3080.7,6.00592]
[1720558307375,1.35941283,3080.8,3080.7,6.00592]
[1720558307576,2.48393874,3080.8,3080.7,6.00592]
[1720558311187,2.48393611,3080.8,3080.7,6.00592]
[1720558314482,1.35941283,3080.8,3080.7,6.00592]
[1720558314648,2.4839348,3080.8,3080.7,6.00592]
[1720558314866,1.35941283,3080.8,3080.7,6.00592]
[1720558315101,2.48394814,3080.8,3080.7,6.00592]
[1720558315597,1.12453531,3080.8,3080.7,6.00592]
[1720558315777,1.12452979,3080.8,3080.7,6.00592]
[1720558316497,1.5755353,3080.8,3080.7,2.4353]
[1720558317576,1.5755353,3080.8,3080.6,3.24611]
[1720558317774,1.12452979,3080.7,3080.6,3.24611]
[1720558318001,1.12454068,3080.7,3080.6,6.24611]
[1720558318367,1.57555958,3080.7,3080.6,6.24611]
[1720558318902,1.57555958,3080.7,3080.6,7.42111]
[1720558320878,0.4510189,3080.7,3080.6,7.42111]
[1720558321226,1.12454828,3080.7,3080.6,7.42111]
[1720558321498,2.93498001,3080.7,3080.6,4.175]
[1720558321881,3.28060176,3080.7,3080.6,4.175]
[1720558322074,1.57556718,3080.7,3080.6,4.175]
[1720558322293,3.28060176,3080.7,3080.6,4.175]
[1720558322500,3.28060176,3080.7,3080.6,1.175]
[1720558323298,1.57556718,3080.7,3080.6,1.175]
[1720558323783,2.94027402,3080.7,3080.6,1.175]
[1720558324416,2.9402666,3080.7,3080.6,1.175]
[1720558326180,1.57578793,3080.7,3080.6,1.175]
[1720558326375,2.94024687,3080.7,3080.6,1.175]
[1720558326619,2.94023262,3080.7,3080.6,1.175]
[1720558327178,2.94023515,3080.7,3080.6,1.175]
[1720558327397,3.28135586,3080.7,3080.6,1.175]
[1720558327811,1.57579046,3080.7,3080.6,1.175]
[1720558328013,3.28136347,3080.7,3080.6,1.175]
[1720558328647,4.49463464,3080.7,3080.6,1.175]
[1720558328800,3.23852509,3080.7,3080.6,1.175]
[1720558329151,2.78906163,3080.7,3080.6,1.175]
[1720558329299,1.57579046,3080.7,3080.6,1.175]
[1720558329796,3.28127404,3080.7,3080.6,1.175]
[1720558330419,3.28137049,3080.7,3080.6,1.175]
[1720558330841,4.4946265,3080.7,3080.6,1.175]
[1720558332142,3.28137049,3080.7,3080.6,1.175]
[1720558333938,1.57583462,3080.7,3080.6,1.175]
[1720558334102,2.93991345,3080.7,3080.6,1.175]
[1720558334301,1.57584108,3080.7,3080.6,1.175]
[1720558334544,3.28100771,3080.7,3080.6,1.175]
[1720558335106,5.07201742,3080.7,3080.1,7.47]
[1720558335435,5.07201742,3080.7,3079.5,3.24722]
[1720558335436,1.36413232,3080.2,3080.0,1.175]
[1720558335605,1.57588719,3080.1,3080.0,1.175]
[1720558336012,3.28105382,3080.1,3080.0,1.175]
[1720558336231,3.28099024,3080.1,3080.0,1.175]
[1720558337043,3.28081101,3080.1,3080.0,1.175]
[1720558338052,3.28081101,3080.1,3079.8,1.175]
[1720558338224,1.36311138,3079.9,3079.8,1.175]
[1720558338406,1.57639138,3079.9,3079.8,1.175]
[1720558338755,1.57639138,3079.9,3078.7,9.7366]
[1720558338756,3.403895,3079.9,3078.7,9.7366]
[1720558339040,3.403895,3079.9,3079.3,1.175]
[1720558339041,1.36270776,3079.5,3079.3,1.175]
[1720558339227,1.57639138,3079.4,3079.3,1.175]
[1720558340165,1.36270776,3079.6,3079.3,1.175]
[1720558340364,1.57685219,3079.5,3079.3,1.175]
[1720558340565,1.57685219,3079.4,3079.3,1.175]
[1720558340751,1.12520718,3079.4,3079.3,1.175]
[1720558340951,1.12520718,3079.6,3079.3,1.175]
[1720558341263,1.12520718,3079.5,3079.3,1.175]
[1720558341560,1.91270776,3079.8,3079.3,1.175]
[1720558341763,1.57678267,3079.7,3079.3,1.175]
[1720558341970,1.57678267,3079.6,3079.3,1.175]
[1720558342266,1.12517144,3079.5,3078.8,3.0]
[1720558342469,1.12517144,3079.5,3079.2,1.175]
[1720558342624,1.12517144,3079.6,3079.2,1.175]
[1720558343578,1.12522898,3079.5,3079.2,1.175]
[1720558343733,4.34240776,3079.8,3079.2,1.175]
[1720558343936,0.60420129,3079.7,3079.2,1.175]
[1720558344160,1.57690574,3079.6,3079.2,1.175]
[1720558344464,0.60420129,3079.7,3079.2,1.175]
[1720558344465,1.12523471,3079.5,3079.2,1.175]
[1720558344767,0.60420129,3079.7,3079.2,1.175]
[1720558344942,1.57690858,3079.6,3079.2,1.175]
[1720558345270,1.57690858,3079.6,3078.8,3.0]
[1720558345271,1.12523642,3079.5,3078.8,3.0]
[1720558345453,0.55,3079.4,3079.1,1.175]
[1720558345967,1.12526928,3079.3,3079.1,1.175]
[1720558346165,0.81159424,3079.5,3079.1,1.175]
[1720558346374,1.12527101,3079.4,3079.1,1.175]
[1720558346554,0.81159424,3079.5,3078.7,7.47]
[1720558346555,0.55,3079.3,3078.7,7.47]
[1720558346769,2.9815,3079.3,3078.9,1.175]
[1720558347065,1.12535077,3079.2,3078.9,1.175]
[1720558347227,1.12535077,3079.1,3078.9,1.175]
[1720558347451,3.30580942,3079.3,3078.9,1.175]
[1720558347786,1.12539279,3079.2,3078.9,1.175]
[1720558347982,1.12539279,3079.1,3078.9,1.175]
[1720558348185,3.30580942,3079.3,3078.9,1.175]
[1720558348186,1.12539279,3079.2,3078.9,1.175]
[1720558348389,3.30580942,3079.3,3078.9,1.175]
[1720558348682,1.45596647,3079.2,3078.9,1.175]
[1720558348879,0.33058094,3079.2,3078.9,1.175]
[1720558349584,1.67541272,3079.1,3078.7,1.175]
[1720558349790,0.55,3079.1,3078.7,1.175]
[1720558349947,0.91363904,3079.1,3078.7,1.175]
[1720558350146,1.12544418,3079.0,3078.7,1.175]
[1720558350458,5.887,3079.0,3078.7,1.175]
[1720558350657,1.67553367,3078.9,3078.2,1.175]
[1720558350874,1.12553367,3078.8,3078.2,1.175]
[1720558351078,0.55,3078.7,3078.2,1.175]
[1720558351246,0.55,3078.7,3077.6,2.4868]
[1720558351247,1.12553367,3078.6,3077.9,1.175]
[1720558351477,1.12553367,3078.6,3077.3,2.4868]
[1720558351478,2.462,3078.5,3077.3,2.4868]
[1720558351800,1.48428704,3078.4,3077.7,1.175]
[1720558351946,1.12553367,3078.3,3077.7,1.175]
[1720558352147,1.67553367,3078.3,3077.7,1.175]
[1720558352374,1.12553367,3078.2,3077.7,1.175]
[1720558352701,1.12553367,3078.2,3077.3,2.4868]
[1720558352702,0.55,3078.1,3077.3,2.4868]
[1720558352998,1.12553367,3078.0,3077.0,2.826]
[1720558353199,0.55,3078.1,3077.0,2.826]
[1720558353396,1.12589458,3078.0,3077.0,3.33949]
[1720558353565,0.55,3077.9,3077.0,3.33949]
[1720558355103,2.3991,3077.8,3076.7,7.47]
[1720558355257,0.55,3077.7,3076.6,2.826]
[1720558356563,2.4027,3078.7,3077.4,8.52468]
[1720558357514,2.4027,3078.7,3077.4,5.69868]
[1720558357718,2.4027,3078.7,3077.4,2.4492]
[1720558358207,0.55,3078.6,3077.4,2.4492]
[1720558358767,0.55,3078.6,3077.4,5.69867]
[1720558358971,0.55,3078.6,3077.5,1.19482]
[1720558359569,0.55,3078.6,3077.4,5.69868]
[1720558361306,2.3945,3079.1,3077.9,3.24896]
[1720558362206,2.3945,3079.1,3077.7,3.24908]
[1720558362432,1.12555642,3079.0,3077.7,6.78078]
[1720558362719,0.55,3079.0,3077.8,3.24906]
[1720558362910,0.55,3079.0,3077.9,3.24896]
[1720558363107,0.55,3079.0,3078.0,0.324896]
[1720558364523,1.12554598,3078.9,3078.0,0.324896]
[1720558364729,0.55,3078.8,3077.8,6.24906]
[1720558364880,0.55,3079.0,3078.0,2.4668]
[1720558365080,0.55,3079.0,3078.0,5.4668]
[1720558365387,2.423,3079.5,3078.2,3.24864]
[1720558365728,1.71023748,3079.4,3078.2,4.72765]
[1720558365899,1.12543748,3079.3,3078.2,1.47901]
[1720558366220,1.12543748,3079.2,3078.2,1.47901]
[1720558366424,1.12545361,3079.1,3078.2,1.47901]
[1720558366597,1.12545361,3079.0,3078.2,1.47901]
[1720558367319,1.12545361,3079.0,3078.1,3.0]
[1720558367522,0.55,3078.9,3078.1,3.0]
[1720558367739,1.12545361,3078.8,3078.1,3.0]
[1720558367903,0.55,3078.7,3078.1,3.0]
[1720558369182,0.55,3078.8,3078.1,3.0]
[1720558369386,1.12554665,3078.7,3078.0,2.4668]
[1720558369588,0.79963,3078.8,3078.0,2.4668]
[1720558369815,1.12555361,3078.7,3078.0,2.4668]
[1720558370031,0.79963,3078.8,3078.0,2.4668]
[1720558370032,1.12555361,3078.6,3078.0,2.4668]
[1720558370202,1.12555361,3078.7,3078.0,2.4668]
[1720558371413,2.4963,3078.6,3077.3,3.24954]
[1720558371621,1.12555361,3078.5,3077.3,3.24954]
[1720558372018,0.55,3078.4,3077.3,3.24954]
[1720558372190,1.12555361,3078.3,3077.4,0.848874]
[1720558372534,0.55,3078.2,3077.4,0.848874]
[1720558372734,1.12555361,3078.1,3077.4,3.848874]
[1720558372887,0.55,3078.2,3077.4,3.848874]
[1720558373090,1.12572383,3078.1,3077.5,0.7098414]
[1720558373336,0.55,3078.5,3077.2,5.2392]
[1720558373654,0.55,3078.5,3077.2,2.4132]
[1720558373655,1.12575138,3078.4,3077.2,2.4132]
[1720558373836,0.55,3078.3,3076.9,5.72992]
[1720558374044,1.63594925,3078.2,3077.0,1.602592]
[1720558374331,1.67587411,3078.1,3077.0,1.602592]
[1720558374537,2.3229,3077.9,3077.0,1.602592]
[1720558374838,1.67587411,3077.8,3077.0,1.602592]
[1720558375042,1.12587411,3077.7,3076.9,2.4799]
[1720558376045,1.12587411,3077.7,3076.9,5.4799]
[1720558376246,0.55,3077.8,3076.9,5.4799]
[1720558376419,1.12594546,3077.7,3076.9,6.635501]
[1720558377345,0.55,3077.6,3076.9,6.635501]
[1720558377571,1.12594546,3077.5,3076.9,6.635501]
[1720558377743,0.55,3077.6,3076.9,6.635501]
[1720558378072,1.12593168,3077.5,3077.0,0.9461501]
[1720558378232,1.12593168,3077.4,3077.0,3.9461501]
[1720558378437,1.12593168,3077.7,3077.0,3.9461501]
[1720558378665,0.55,3077.6,3077.0,3.9461501]
[1720558378978,1.12593168,3077.5,3077.0,3.9461501]
[1720558379478,0.55,3077.6,3077.0,3.9461501]
[1720558379686,3.93507514,3078.2,3077.1,0.75816511]
[1720558379687,1.12589712,3077.5,3077.1,0.75816511]
[1720558379848,2.3114,3078.3,3077.2,6.07563]
[1720558380053,1.67580555,3078.2,3077.3,2.3257]
[1720558380382,1.67580555,3078.2,3077.0,5.2843]
[1720558380383,1.12580555,3078.1,3077.0,5.2843]
[1720558380582,1.12580555,3078.1,3076.9,3.0]
[1720558380583,0.55,3078.0,3076.9,3.0]
[1720558380731,0.75745261,3078.0,3076.9,3.0]
[1720558380931,1.12580555,3077.9,3076.9,3.0]
[1720558381137,0.55,3077.8,3076.9,3.0]
[1720558381491,1.12580555,3077.7,3076.9,3.0]
[1720558381649,0.55,3077.6,3076.9,4.136036]
[1720558382183,1.125951,3077.5,3076.9,4.136036]
[1720558382393,0.55,3077.9,3076.9,4.136036]
[1720558382594,2.3452,3077.7,3076.8,2.826]
[1720558382811,1.67593505,3077.6,3076.8,2.826]
[1720558382951,1.12593505,3077.5,3076.4,7.47]
[1720558383151,0.55,3077.6,3076.4,7.47]
[1720558383152,1.29370513,3077.4,3076.4,7.47]
[1720558383351,0.55,3077.6,3076.4,7.47]
[1720558383352,1.67611162,3077.3,3076.4,7.47]
[1720558383594,1.67611162,3077.2,3076.4,7.47]
[1720558383763,1.12611162,3077.1,3076.3,5.74898]
[1720558383969,0.55,3077.6,3076.3,5.74898]
[1720558384281,1.12607198,3077.5,3076.3,5.74898]
[1720558384483,1.67607198,3077.4,3076.3,5.74898]
[1720558384687,1.67607198,3077.4,3076.0,2.826]
[1720558384688,2.3862,3077.2,3076.4,3.0]
[1720558384995,1.67607198,3077.1,3076.1,3.0]
[1720558385194,1.12621556,3077.0,3076.2,0.907691]
[1720558385492,1.67621556,3076.9,3076.2,0.907691]
[1720558385697,1.12621556,3076.8,3076.2,0.907691]
[1720558385859,1.12621556,3076.8,3076.4,2.2996]
[1720558386056,1.12621556,3077.4,3076.5,3.25043]
[1720558386380,1.12611378,3077.3,3076.5,3.25043]
[1720558386690,1.12601558,3077.2,3076.5,4.75217291]
[1720558386856,2.3695,3077.8,3076.6,0.06500068]
[1720558387049,1.12603554,3077.7,3076.7,3.58175507]
[1720558387251,2.3695,3077.8,3076.8,5.1256]
[1720558387252,1.12603554,3077.6,3076.8,5.1256]
[1720558387467,1.12603554,3077.5,3077.0,3.2499]
[1720558387885,2.3695,3077.8,3077.0,3.2499]
[1720558388193,1.12589927,3077.7,3077.0,3.2499]
[1720558388400,10.22822056,3078.2,3077.0,4.46702735]
[1720558388609,1.12586786,3078.1,3077.0,4.46702735]
[1720558388805,1.67586786,3078.0,3077.0,4.46702735]
[1720558388992,1.12586786,3077.9,3077.0,4.46702735]
[1720558389190,0.55,3077.8,3077.1,0.50127409]
[1720558389396,1.12586786,3077.7,3077.1,0.50127409]
[1720558391179,1.12586786,3077.7,3076.8,2.826]
[1720558391385,0.55,3077.6,3076.9,2.2996]
[1720558391687,1.12599354,3077.5,3076.9,5.54961]
[1720558391890,1.12599354,3077.4,3076.9,5.54961]
[1720558392064,0.55,3077.6,3076.9,5.54961]
[1720558392265,1.12597871,3077.5,3076.9,5.54961]
[1720558392472,1.12597871,3077.4,3076.9,5.89571632]
[1720558392677,0.55,3077.9,3076.9,9.14564632]
[1720558392914,1.12591406,3077.8,3076.9,9.14564632]
[1720558393123,1.67591406,3077.7,3077.0,4.16447463]
[1720558393421,1.12591406,3077.6,3077.0,4.16447463]
[1720558393621,0.55,3077.6,3077.0,4.16447463]
[1720558393806,1.12591291,3077.5,3077.0,0.91456463]
[1720558394003,1.12591291,3077.5,3076.9,5.89563632]
[1720558394318,2.25755821,3077.9,3076.9,2.64570632]
[1720558394319,1.12591291,3077.4,3076.9,2.64570632]
[1720558394515,1.12591291,3077.7,3076.9,2.2996]
[1720558394698,1.12598234,3077.3,3076.9,2.2996]
[1720558395019,1.36065906,3077.8,3076.9,5.54961]
[1720558395323,1.67595875,3077.7,3077.0,0.554961]
[1720558395514,1.12595875,3077.6,3077.0,0.554961]
[1720558395719,1.12595875,3077.5,3077.0,0.554961]
[1720558395923,1.12595875,3077.4,3076.9,5.54962]
[1720558396419,1.12595875,3077.3,3076.9,5.54962]
[1720558396619,1.12595875,3077.5,3077.0,3.24986]
[1720558396925,0.55,3077.7,3077.0,3.804822]
[1720558397113,1.12588137,3077.6,3077.0,3.804822]
[1720558397315,1.12588137,3077.5,3077.0,3.804822]
[1720558397620,1.12588137,3077.4,3077.0,3.24986]
[1720558397822,1.12588137,3077.7,3077.0,3.24986]
[1720558397979,1.67589152,3077.6,3077.0,3.24986]
[1720558398184,0.55,3077.6,3077.0,3.24986]
[1720558398425,1.12589851,3077.5,3077.0,3.24986]
[1720558398722,1.12589851,3077.4,3077.0,4.412403]
[1720558398896,1.12589851,3077.3,3077.0,4.412403]
[1720558399096,0.55,3077.6,3077.0,4.412403]
[1720558399421,1.12590596,3077.5,3077.1,3.2498]
[1720558399624,0.55,3077.7,3077.1,4.2459113]
[1720558399625,1.12590596,3077.4,3077.1,4.2459113]
[1720558399926,1.3605579,3077.9,3077.1,4.2459313]
[1720558400138,3.03646445,3077.8,3076.9,5.54953]
[1720558400342,1.12590655,3077.7,3076.9,5.54953]
[1720558400524,2.48646445,3077.7,3077.1,3.2498]
[1720558400726,1.12590655,3077.6,3077.1,3.2498]
[1720558401444,1.3605579,3077.7,3077.1,3.2498]
[1720558401739,1.12592928,3077.6,3077.1,3.2498]
[1720558401943,0.55,3077.8,3077.1,3.2498]
[1720558402127,2.48654337,3077.7,3077.1,3.2498]
[1720558402352,1.12591047,3077.6,3077.1,3.2498]
[1720558402548,1.12591047,3077.5,3077.1,3.2498]
[1720558402861,1.3606329,3077.7,3077.1,3.2498]
[1720558402862,1.12591047,3077.4,3077.1,3.2498]
[1720558403226,1.12591047,3077.3,3077.1,7.379473]
[1720558403422,1.12591047,3077.6,3077.1,7.379473]
[1720558403630,1.12591047,3077.5,3077.1,7.379473]
[1720558403966,1.12591047,3077.4,3077.1,7.379473]
[1720558404121,1.12591047,3077.7,3077.1,7.379473]
[1720558404318,1.12591047,3077.6,3077.2,3.24969]
[1720558404560,1.12591047,3077.5,3077.2,3.9876373]
[1720558404763,1.12591047,3077.5,3077.2,3.24969]
[1720558405066,1.12582598,3077.4,3077.2,3.24969]
[1720558405271,1.12582598,3077.3,3077.2,3.24969]
[1720558405728,2.48697679,3077.8,3077.2,3.24969]
[1720558405926,1.12582598,3077.7,3077.2,3.24969]
[1720558406126,1.12582598,3077.8,3077.2,3.24969]
[1720558407339,1.12582598,3077.8,3077.2,6.49933]
[1720558408145,1.36115081,3077.9,3077.2,6.49933]
[1720558408387,1.67581029,3077.8,3077.2,6.49933]
[1720558408561,1.12581029,3077.7,3077.2,6.49933]
[1720558408775,1.12581029,3077.6,3077.2,6.49933]
[1720558408961,1.12581029,3077.5,3077.2,7.149263]
[1720558409157,1.12581029,3077.4,3077.2,7.149263]
[1720558409358,1.12581029,3077.3,3077.2,3.899573]
[1720558409678,0.55,3077.8,3077.3,3.24959]
[1720558409992,1.12581534,3077.7,3077.3,3.24959]
[1720558410288,1.12581534,3077.6,3077.2,3.899613]
[1720558410643,1.12581534,3077.7,3077.2,3.899613]
[1720558410960,1.12581534,3077.7,3077.2,3.24968]
[1720558411571,1.12583601,3077.6,3077.2,3.24968]
[1720558411773,1.12583601,3077.5,3077.2,3.24968]
[1720558411947,1.12583471,3077.4,3077.2,3.24968]
[1720558412146,1.12583471,3077.3,3077.2,3.24968]
[1720558412349,2.48840837,3077.7,3077.2,3.899619]
[1720558412653,1.12583471,3077.6,3076.9,5.54954]
[1720558413087,2.48840837,3077.6,3077.1,3.24981]
[1720558413284,2.48840837,3077.5,3076.9,8.7995]
[1720558413500,1.12583471,3077.4,3076.9,3.46215]
[1720558413643,1.12583471,3077.5,3076.9,2.2996]
[1720558413848,2.48840837,3077.5,3076.9,5.2996]
[1720558414144,1.12583471,3077.4,3076.9,5.2996]
[1720558414747,1.36257366,3077.5,3077.3,1.178]
[1720558415087,1.12589395,3077.4,3077.3,1.178]
[1720558415290,2.48846761,3077.4,3077.3,1.178]
[1720558417928,2.49098787,3076.7,3076.6,1.178]
[1720558418223,2.49125806,3076.7,3076.6,1.178]
[1720558418718,2.49125806,3076.7,3076.3,3.25062]
[1720558418936,2.49125806,3076.7,3076.3,7.669142]
[1720558418937,1.12616414,3076.6,3076.3,7.669142]
[1720558419219,1.12616414,3076.5,3076.3,7.669142]
[1720558419573,1.36509392,3076.7,3076.3,4.418522]
[1720558419774,1.12614771,3076.6,3076.3,4.418522]
[1720558420088,1.12614771,3076.5,3076.3,4.418522]
[1720558420293,2.59762279,3077.1,3076.3,4.418522]
[1720558420294,2.49124163,3076.6,3076.3,4.418522]
[1720558420510,1.12614771,3076.5,3076.3,3.25058]
[1720558420682,1.12614771,3076.5,3076.3,6.50114]
[1720558420882,1.12614771,3076.6,3076.3,6.50114]
[1720558421083,1.12613706,3076.5,3076.3,4.418474]
[1720558421280,0.33910432,3076.5,3076.3,4.418474]
[1720558422089,0.33910432,3076.5,3076.3,1.167914]
[1720558422435,0.33910432,3076.5,3076.3,4.167914]
[1720558422920,0.33910432,3076.5,3076.3,7.418554]
[1720558423118,0.33910432,3076.5,3076.4,0.84873161]
[1720558424422,0.33910432,3076.5,3076.3,4.167914]
[1720558424992,0.33910432,3076.5,3076.3,3.0]
[1720558425188,0.33910432,3076.5,3076.2,3.0]
[1720558426099,1.12623185,3076.4,3076.2,3.0]
[1720558426317,0.33910432,3076.5,3076.2,3.0]
[1720558426625,0.33910432,3076.5,3076.1,2.828]
[1720558426825,0.33910432,3076.5,3076.1,6.07885]
[1720558427031,1.12621775,3076.4,3076.1,6.07885]
[1720558427230,0.33910432,3076.5,3076.1,6.07885]
[1720558427431,1.12622778,3076.4,3076.1,6.07885]
[1720558427611,0.33910432,3076.5,3076.1,6.07885]
[1720558428017,0.33910432,3076.5,3076.1,10.509749]
[1720558429196,0.33910432,3076.5,3076.2,3.25075]
[1720558432334,1.36428619,3076.7,3076.2,3.25075]
[1720558432536,1.12622387,3076.6,3076.2,3.25075]
[1720558432744,1.12622387,3076.5,3076.2,3.25075]
[1720558432922,1.36428619,3076.7,3076.2,3.25075]
[1720558433122,1.12620932,3076.6,3076.2,3.25075]
[1720558433324,1.12620932,3076.5,3076.2,3.25075]
[1720558433549,1.36428619,3076.7,3076.2,3.25075]
[1720558433851,1.12621003,3076.6,3076.2,3.25075]
[1720558434050,1.12621003,3076.5,3076.2,3.25075]
[1720558434442,1.12621003,3076.6,3076.2,3.25075]
[1720558434641,1.36428619,3076.7,3076.3,3.0]
[1720558434853,1.12622428,3076.6,3076.2,3.25075]
[1720558435167,1.12622428,3076.5,3076.2,3.25075]
[1720558435352,1.12622428,3076.6,3076.2,3.25075]
[1720558436173,1.12622428,3076.6,3076.1,3.25086]
[1720558436174,2.49051047,3076.6,3076.1,3.25086]
[1720558436372,1.12622428,3076.6,3076.2,3.0]
[1720558436666,1.12622428,3076.5,3076.2,3.0]
[1720558436967,1.12622428,3076.4,3076.2,3.0]
[1720558437272,1.36428619,3076.7,3076.2,3.0]
[1720558437473,1.12624465,3076.6,3076.1,3.25081]
[1720558437696,1.12624465,3076.5,3076.2,3.25075]
[1720558437993,1.36428619,3076.7,3076.2,3.25075]
[1720558438180,1.12621554,3076.6,3076.2,3.25075]
[1720558438559,1.12621554,3076.5,3076.2,3.25075]
[1720558438763,1.12621554,3076.6,3076.2,3.9084231]
[1720558438961,1.12621554,3076.5,3076.2,3.9084231]
[1720558439199,1.36428619,3076.8,3076.2,3.9084231]
[1720558439496,1.12619809,3076.7,3076.2,3.9084231]
[1720558439698,1.12619809,3076.6,3076.2,3.9084231]
[1720558439882,1.12619809,3076.7,3076.2,3.9084231]
[1720558440064,1.36428619,3076.8,3076.2,3.9084231]
[1720558440065,1.12619809,3076.6,3076.2,3.9084231]
[1720558440280,1.12619809,3076.5,3076.3,0.47634041]
[1720558440490,1.36428619,3077.0,3076.5,5.73116]
[1720558440670,1.70352239,3077.1,3076.5,5.73116]
[1720558440671,1.12612437,3076.9,3076.5,5.73116]
[1720558440871,1.36428619,3077.2,3076.8,1.178]
[1720558441068,1.12601288,3077.1,3077.0,1.178]
[1720558441508,1.12602679,3077.1,3077.0,1.178]
[1720558442094,1.36428619,3077.3,3077.0,1.178]
[1720558442313,1.36428619,3077.3,3076.6,4.431301]
[1720558442314,1.12600513,3077.2,3076.6,4.431301]
[1720558442470,1.12600513,3077.2,3077.1,1.178]
[1720558443415,2.49029132,3077.2,3077.1,1.178]
[1720558443801,1.12600513,3077.2,3077.1,1.178]
[1720558444122,1.12601004,3077.2,3077.1,1.178]
[1720558444881,1.28801004,3077.2,3077.1,1.178]
[1720558445215,2.65229623,3077.2,3077.1,1.178]
[1720558445414,2.65229623,3077.2,3076.9,1.178]
[1720558445618,1.12601004,3077.1,3076.9,1.178]
[1720558447006,0.45242911,3077.0,3076.9,1.178]
[1720558447179,1.52628619,3077.2,3076.9,1.178]
[1720558447380,1.5784528,3077.1,3076.7,3.2502]
[1720558447633,1.52475655,3077.2,3076.8,0.32502]
[1720558447634,1.12603187,3077.0,3076.8,0.32502]
[1720558447789,1.12603187,3076.9,3076.7,3.2502]
[1720558448000,1.12603187,3076.8,3076.7,3.2502]
[1720558448198,1.12603187,3076.8,3076.7,4.4282]
[1720558448402,1.12603187,3076.8,3076.7,5.444134]
[1720558450029,0.162,3077.2,3076.7,5.444134]
[1720558450202,1.57834205,3077.1,3076.7,4.266134]
[1720558450382,0.162,3077.2,3077.0,1.178]
[1720558450588,1.57833906,3077.1,3077.0,1.178]
[1720558451230,1.57834381,3077.1,3077.0,1.178]
[1720558451403,1.88867299,3077.1,3077.0,1.178]
[1720558452004,3.25162872,3077.1,3077.0,1.178]
[1720558452390,1.88867299,3077.1,3077.0,1.178]
[1720558452589,1.57834381,3077.1,3077.0,1.178]
[1720558453824,1.57835126,3077.1,3077.0,1.178]
[1720558454499,2.94130699,3077.1,3077.0,1.178]
[1720558454811,1.57835126,3077.1,3077.0,1.178]
[1720558454999,2.94130699,3077.1,3077.0,1.178]
[1720558455201,2.3308,3077.0,3076.0,3.25095]
[1720558455439,1.36407587,3076.7,3076.6,1.178]
[1720558455742,2.04310346,3076.7,3076.4,1.178]
[1720558456237,3.28362787,3076.6,3076.4,1.178]
[1720558456423,2.94274391,3076.5,3076.4,1.178]
[1720558457145,2.94300947,3076.5,3076.4,1.178]
[1720558458750,2.94300947,3076.5,3076.0,9.07896]
[1720558459046,1.57861682,3076.4,3076.0,10.552217]
[1720558459252,1.57861682,3076.3,3076.0,10.552217]
[1720558459409,0.45237335,3076.2,3076.0,10.552217]
[1720558459611,1.36439265,3076.5,3076.0,10.552217]
[1720558459815,1.57882954,3076.4,3076.0,10.552217]
[1720558460053,1.57882954,3076.3,3076.2,5.58256]
[1720558460289,1.36439265,3076.5,3076.2,5.58256]
[1720558460556,0.4525321,3076.4,3076.2,5.58256]
[1720558460705,1.36439265,3076.7,3076.2,5.58256]
[1720558460905,2.94307223,3076.6,3076.2,7.18672627]
[1720558461211,1.57867958,3076.5,3076.2,7.18672627]
[1720558461406,0.45253287,3076.4,3076.2,7.18672627]
[1720558461642,0.45253725,3076.3,3076.2,7.18672627]
[1720558461850,0.45253725,3076.5,3076.2,7.18672627]
[1720558462049,1.57868839,3076.4,3076.2,7.18672627]